bitfinex/quotes_SOLUSD_20250118
["timestamp","ask_amount","ask_price","bid_price","bid_amount"]
[1737184680054,4.2842,233.42,233.26,4.287]
[1737184680366,16.92659827,233.38,233.26,4.287]
[1737184680568,16.92659827,233.36,233.26,4.287]
[1737184680747,16.92659827,233.34,233.26,4.287]
[1737184682843,16.92659827,233.32,233.19,1.8345]
[1737184683172,16.92659827,233.32,233.19,4.2883]
[1737184683545,14.9969,233.38,233.18,0.03]
[1737184683546,16.92659827,233.28,233.18,0.03]
[1737184683752,16.92659827,233.26,233.18,0.03]
[1737184684960,0.02,233.18,233.14,4.3192]
[1737184685156,0.02,233.18,233.14,0.03]
[1737184687346,16.92659827,233.17,233.14,0.03]
[1737184687570,16.92659827,233.15,233.14,0.03]
[1737184687873,19.11199827,233.15,233.13,0.03]
[1737184688044,0.80450445,233.14,233.01,10.0]
[1737184688246,16.92659827,233.06,233.01,10.0]
[1737184689471,16.92659827,233.08,233.01,10.0]
[1737184690348,16.92659827,233.1,233.01,10.0]
[1737184690871,4.2895,233.13,233.01,10.0]
[1737184691061,21.21589827,233.14,233.01,14.2915]
[1737184691271,16.92659827,233.08,233.01,10.0]
[1737184691459,21.21699827,233.08,233.01,10.0]
[1737184692370,16.92659827,233.08,233.01,10.0]
[1737184692682,21.21689827,233.08,233.01,10.0]
[1737184692970,16.92659827,233.06,233.01,10.0]
[1737184693172,20.0,233.01,233.0,6.5e-05]
[1737184693484,4.2918,233.0,232.98,0.0001]
[1737184693780,16.92659827,233.01,232.98,0.0001]
[1737184694155,16.92659827,233.05,232.98,0.0001]
[1737184695260,16.92659827,233.03,232.98,0.0001]
[1737184695565,16.92659827,232.99,232.98,0.0001]
[1737184697578,21.21859827,232.99,232.98,0.0001]
[1737184698577,23.40399827,232.99,232.98,0.0001]
[1737184698750,36.42229827,232.99,232.98,0.0001]
[1737184699644,47.15229827,232.99,232.9,0.03]
[1737184699848,16.92659827,232.91,232.9,0.0001]
[1737184700068,16.92659827,232.92,232.9,0.0001]
[1737184700472,0.80526128,232.91,232.9,0.0001]
[1737184701050,16.92659827,232.92,232.9,0.0001]
[1737184701251,0.80524676,232.91,232.9,0.0001]
[1737184701565,5.09874676,232.91,232.9,0.0001]
[1737184701956,16.92659827,232.94,232.9,0.0001]
[1737184702668,16.92659827,232.92,232.9,0.0001]
[1737184702868,16.92659827,232.98,232.9,0.0001]
[1737184703262,16.92659827,232.94,232.9,0.0001]
[1737184703457,16.92659827,232.92,232.9,0.0001]
[1737184703873,0.80506229,233.03,232.9,0.0001]
[1737184704052,16.92659827,232.99,232.9,0.0001]
[1737184704453,16.92659827,232.97,232.9,0.0001]
[1737184706256,16.92659827,233.01,232.9,0.0001]
[1737184706576,16.92659827,233.04,232.9,0.0001]
[1737184707081,16.92659827,233.1,232.95,15.0246]
[1737184707264,16.92659827,233.12,232.98,20.0]
[1737184707466,2.0624,232.98,232.86,1.73659789]
[1737184707651,51.68,233.11,232.54,1.73625227]
[1737184707652,8.8671,232.76,232.54,1.73625227]
[1737184707855,9.65197881,232.76,232.45,10.0]
[1737184708064,16.92659827,232.8,232.45,10.0]
[1737184708267,16.92659827,232.84,232.46,16.59614733]
[1737184708475,16.92659827,232.86,232.46,153.89614733]
[1737184708653,16.92659827,232.78,232.47,12.82]
[1737184708865,16.92659827,232.78,232.49,12.82]
[1737184709059,16.92659827,232.8,232.49,150.12]
[1737184709275,16.92659827,232.82,232.51,12.82]
[1737184709471,16.92659827,232.8,232.51,12.82]
[1737184709871,16.92659827,232.76,232.5,45.0779]
[1737184710074,16.92659827,232.8,232.57,20.0]
[1737184710286,16.92659827,232.82,232.57,20.0]
[1737184710585,16.92659827,232.82,232.5,33.96339155]
[1737184710800,16.92659827,232.68,232.5,12.45809155]
[1737184711088,16.92659827,232.64,232.46,0.03]
[1737184711387,16.92659827,232.64,232.47,15.0556]
[1737184711687,16.92659827,232.66,232.47,15.0556]
[1737184712279,0.80604626,232.73,232.5,20.0]
[1737184712280,16.92659827,232.68,232.5,20.0]
[1737184712775,0.80604626,232.73,232.5,20.0]
[1737184712776,16.92659827,232.72,232.5,20.0]
[1737184713197,16.92659827,232.72,232.54,20.0]
[1737184714193,16.92659827,232.8,232.54,20.0]
[1737184714194,16.92659827,232.74,232.54,20.0]
[1737184714400,0.80588141,232.79,232.54,20.0]
[1737184714701,17.73232159,232.78,232.54,20.0]
[1737184714995,16.92659827,232.76,232.52,12.82]
[1737184715206,16.92659827,232.76,232.55,20.0]
[1737184715388,16.92659827,232.76,232.56,20.0]
[1737184715588,0.80568716,232.87,232.58,10.0]
[1737184715896,16.92659827,232.81,232.61,20.0]
[1737184716100,16.92659827,232.79,232.61,20.0]
[1737184716590,16.92659827,232.77,232.61,20.0]
[1737184716790,16.92659827,232.75,232.61,20.0]
[1737184717294,16.92659827,232.77,232.62,15.0459]
[1737184717501,16.92659827,232.79,232.65,20.0]
[1737184718399,16.92659827,232.79,232.66,10.7452]
[1737184719602,0.80559886,232.84,232.66,10.7452]
[1737184719894,16.92659827,232.8,232.66,10.7452]
[1737184720597,16.92659827,232.78,232.66,10.7452]
[1737184720800,16.92659827,232.76,232.66,10.7452]
[1737184720997,16.92659827,232.74,232.62,15.0459]
[1737184723207,16.92659827,232.72,232.62,4.2988]
[1737184723709,16.92659827,232.74,232.62,15.0459]
[1737184724080,16.92659827,232.72,232.62,4.2988]
[1737184724499,16.92659827,232.72,232.59,4.2994]
[1737184725184,16.92659827,232.72,232.59,15.0479]
[1737184725802,16.92659827,232.69,232.59,4.2994]
[1737184725997,16.92659827,232.61,232.58,10.0]
[1737184726194,16.92659827,232.59,232.58,10.0]
[1737184726396,16.92659827,232.63,232.58,14.2995]
[1737184726599,16.92659827,232.65,232.58,14.2995]
[1737184726794,16.92659827,232.59,232.58,10.0]
[1737184727006,16.92659827,232.63,232.58,14.2994]
[1737184727214,16.92659827,232.65,232.47,0.03]
[1737184727685,16.92659827,232.67,232.47,0.03]
[1737184728790,16.92659827,232.69,232.51,20.0]
[1737184729005,16.92659827,232.67,232.51,20.0]
[1737184729386,16.92659827,232.69,232.51,20.0]
[1737184729597,16.92659827,232.71,232.51,20.0]
[1737184729800,16.92659827,232.69,232.51,20.0]
[1737184730109,16.92659827,232.67,232.51,20.0]
[1737184730302,0.80610715,232.72,232.51,21.72694307]
[1737184730502,16.92659827,232.71,232.51,21.72694307]
[1737184730824,16.92659827,232.73,232.55,20.0]
[1737184731314,16.92659827,232.75,232.55,20.0]
[1737184731503,16.92659827,232.7,232.55,20.0]
[1737184731707,16.92659827,232.72,232.55,20.0]
[1737184732013,16.92659827,232.76,232.56,30.4679]
[1737184732205,16.92659827,232.78,232.56,43.2879]
[1737184732409,16.92659827,232.8,232.56,43.2879]
[1737184732590,16.92659827,232.82,232.56,180.5879]
[1737184732899,16.92659827,232.82,232.63,20.0]
[1737184733513,16.92659827,232.82,232.6,12.82]
[1737184733709,16.92659827,232.84,232.63,20.0]
[1737184734013,16.92659827,232.86,232.63,20.0]
[1737184734416,0.80536782,232.91,232.61,12.82]
[1737184734417,16.92659827,232.84,232.61,12.82]
[1737184734591,16.92659827,232.8,232.6,21.74765896]
[1737184734798,16.92659827,232.8,232.59,5.36]
[1737184735014,16.92659827,232.82,232.62,20.0]
[1737184735400,16.92659827,232.84,232.63,20.0]
[1737184735920,16.92659827,232.84,232.67,20.0]
[1737184736413,16.92659827,232.88,232.67,20.0]
[1737184736917,16.92659827,232.88,232.71,20.0]
[1737184737403,16.92659827,232.83,232.71,20.0]
[1737184737715,21.21989827,232.92,232.68,36.5307]
[1737184737716,16.92659827,232.75,232.68,4.2977]
[1737184737916,16.92659827,232.77,232.68,4.2977]
[1737184738294,16.92659827,232.73,232.56,10.4679]
[1737184738494,16.92659827,232.67,232.57,4.2997]
[1737184738894,16.92659827,232.61,232.49,4.3012]
[1737184739191,16.92659827,232.61,232.46,0.03]
[1737184739192,16.92659827,232.55,232.46,0.03]
[1737184739409,16.92659827,232.52,232.46,0.03]
[1737184739912,16.92659827,232.5,232.46,0.03]
[1737184740620,16.92659827,232.48,232.46,0.03]
[1737184740995,21.22799827,232.48,232.46,0.03]
[1737184741201,17.7333736,232.48,232.46,0.03]
[1737184741397,16.92659827,232.48,232.46,0.03]
[1737184741602,17.73346212,232.48,232.46,0.03]
[1737184742325,17.73346212,232.48,232.47,0.0001]
[1737184742725,4.3016,232.47,232.46,0.0001]
[1737184743612,16.92659827,232.39,232.32,0.03]
[1737184744010,16.92659827,232.41,232.32,20.03]
[1737184744329,16.92659827,232.41,232.32,0.03]
[1737184745108,16.92659827,232.39,232.32,0.03]
[1737184745927,11.55876436,232.53,232.32,0.03]
[1737184746115,16.92659827,232.4,232.32,0.03]
[1737184746833,16.92659827,232.42,232.32,0.03]
[1737184747936,16.92659827,232.4,232.32,0.03]
[1737184748536,16.92659827,232.38,232.32,0.03]
[1737184748732,16.92659827,232.44,232.32,0.03]
[1737184748733,16.92659827,232.33,232.32,0.03]
[1737184749027,33.85319654,232.33,232.32,0.03]
[1737184749209,38.15739654,232.33,232.32,0.03]
[1737184749410,21.23079827,232.33,232.32,0.03]
[1737184749813,38.15739654,232.33,232.32,0.03]
[1737184750122,16.92659827,232.25,232.06,36.6283]
[1737184750318,16.92659827,232.25,232.06,38.03170475]
[1737184750621,16.92659827,232.29,232.06,59.57780475]
[1737184750824,16.92659827,232.27,232.06,59.57780475]
[1737184751030,16.92659827,232.29,232.09,20.0]
[1737184751215,10.7573,232.4,232.1,36.622]
[1737184751216,16.92659827,232.31,232.1,36.622]
[1737184751731,16.92659827,232.31,232.13,20.0]
[1737184752326,16.92659827,232.27,232.13,20.0]
[1737184752638,0.80712726,232.37,232.1,58.1644]
[1737184752639,16.92659827,232.23,232.1,15.0796]
[1737184752815,16.92659827,232.23,232.13,20.0]
[1737184753216,16.92659827,232.19,232.06,1.40340475]
[1737184753439,16.92659827,232.17,232.07,4.309]
[1737184753632,16.92659827,232.17,232.08,0.03]
[1737184754014,0.80771268,232.28,232.08,0.03]
[1737184754211,16.92659827,232.2,232.08,0.03]
[1737184754432,16.92659827,232.18,232.08,0.03]
[1737184755625,16.92659827,232.18,232.08,20.03]
[1737184755938,16.92659827,232.2,232.08,20.03]
[1737184756435,16.92659827,232.22,232.08,20.03]
[1737184756938,16.92659827,232.2,232.09,4.3086]
[1737184757239,16.92659827,232.22,232.09,4.3086]
[1737184757640,16.92659827,232.22,232.09,15.0802]
[1737184757943,4.3053,232.27,232.16,17.08186405]
[1737184757944,17.08186405,232.25,232.16,17.08186405]
[1737184758446,17.08186405,232.17,232.08,4.3388]
[1737184758615,17.08186405,232.14,232.08,4.3388]
[1737184758940,17.08186405,232.14,232.09,0.03]
[1737184760045,17.08186405,232.16,232.09,0.03]
[1737184760251,17.08186405,232.16,232.08,17.10190096]
[1737184760618,17.08186405,232.14,232.08,0.02003691]
[1737184760813,17.08186405,232.09,232.08,0.02003691]
[1737184761441,10.7685,232.16,232.08,0.02003691]
[1737184761442,17.08186405,232.11,232.08,0.02003691]
[1737184761613,17.08186405,232.09,232.08,0.02003691]
[1737184762442,17.08186405,232.11,232.08,0.02003691]
[1737184763236,17.08186405,232.13,232.08,0.02003691]
[1737184763645,17.08186405,232.15,232.08,0.02003691]
[1737184764350,17.08186405,232.11,232.08,0.02003691]
[1737184764825,9.40334792,232.1,232.08,3.691e-05]
[1737184765026,22.19876196,232.09,232.08,3.691e-05]
[1737184765421,21.39046405,232.09,232.08,3.691e-05]
[1737184766246,17.08186405,232.04,231.9,8.3868]
[1737184766448,17.08186405,232.06,231.98,17.08186405]
[1737184766647,17.08186405,232.08,231.98,17.08186405]
[1737184767349,17.08186405,232.08,231.99,4.3105]
[1737184768953,17.08186405,232.05,231.97,4.3107]
[1737184769253,17.08186405,232.05,231.96,20.0]
[1737184769254,17.08186405,232.03,231.96,4.3109]
[1737184769446,17.08186405,232.01,231.93,17.08186405]
[1737184769660,17.08186405,232.01,231.85,10.54830933]
[1737184769818,17.08186405,232.01,231.91,17.08186405]
[1737184770639,17.08186405,232.01,231.84,1.146509]
[1737184770839,17.08186405,231.99,231.9,17.08186405]
[1737184771056,17.08186405,231.99,231.91,17.08186405]
[1737184771228,22.20078773,231.99,231.89,17.08186405]
[1737184771429,17.08186405,231.97,231.84,0.03]
[1737184771642,17.08186405,232.01,231.91,17.08186405]
[1737184771841,17.08186405,231.99,231.89,17.08186405]
[1737184772741,17.08186405,232.01,231.91,17.08186405]
[1737184772940,17.08186405,231.98,231.88,17.08186405]
[1737184773359,17.08186405,231.96,231.86,17.08186405]
[1737184773557,17.08186405,231.98,231.88,17.08186405]
[1737184773860,17.08186405,231.98,231.86,17.08186405]
[1737184774045,17.08186405,231.98,231.88,17.08186405]
[1737184774561,17.08186405,231.96,231.86,17.08186405]
[1737184775959,21.39296405,231.96,231.86,17.08186405]
[1737184776253,17.08186405,231.96,231.86,17.08186405]
[1737184776839,17.08186405,231.98,231.9,17.08186405]
[1737184777240,17.08186405,231.98,231.88,17.08186405]
[1737184777646,17.08186405,231.98,231.9,17.08186405]
[1737184777841,17.08186405,231.98,231.73,12.82]
[1737184778145,17.08186405,231.98,231.83,20.0]
[1737184778343,17.08186405,231.98,231.89,17.08186405]
[1737184778552,17.08186405,232.04,231.95,17.08186405]
[1737184778935,17.08186405,232.06,231.99,17.08186405]
[1737184779533,2.0955,232.11,231.99,17.08186405]
[1737184779729,17.08186405,232.06,231.97,17.08186405]
[1737184779933,17.08186405,232.09,232.0,17.08186405]
[1737184780156,17.08186405,232.11,232.02,17.08186405]
[1737184780736,9.1252,232.13,231.9,8.5307]
[1737184780737,17.08186405,232.13,232.06,17.08186405]
[1737184780938,17.08186405,232.13,232.04,17.08186405]
[1737184781131,17.08186405,232.11,232.02,17.08186405]
[1737184781360,17.08186405,232.07,231.98,17.08186405]
[1737184781557,5.11639844,232.1,231.96,17.08186405]
[1737184781558,17.08186405,232.05,231.96,17.08186405]
[1737184781737,17.08186405,232.02,231.91,17.08186405]
[1737184781939,17.08186405,232.02,231.93,17.08186405]
[1737184782456,17.08186405,232.02,231.91,17.08186405]
[1737184783352,17.08186405,232.02,231.93,17.08186405]
[1737184784032,9.1252,232.04,231.97,17.08186405]
[1737184784661,17.08186405,232.05,231.97,17.08186405]
[1737184786464,17.08186405,232.05,231.95,17.08186405]
[1737184787246,17.08186405,232.03,231.95,17.08186405]
[1737184787439,17.08186405,231.97,231.85,46.5]
[1737184787653,17.08186405,231.93,231.85,46.5]
[1737184788236,17.08186405,231.91,231.85,46.5]
[1737184788440,17.08186405,231.89,231.74,5.38]
[1737184788663,17.08186405,231.91,231.84,20.0]
[1737184788950,17.08186405,231.93,231.74,5.38]
[1737184789155,17.08186405,231.91,231.82,17.08186405]
[1737184789459,17.08186405,231.91,231.85,20.0]
[1737184789661,17.08186405,231.91,231.82,17.08186405]
[1737184789853,17.08186405,231.91,231.74,5.38]
[1737184790157,17.08186405,231.91,231.83,17.08186405]
[1737184790767,17.08186405,231.91,231.74,6.48251847]
[1737184790946,17.08186405,231.91,231.83,17.08186405]
[1737184791670,9.1252,231.95,231.83,17.08186405]
[1737184791671,17.08186405,231.93,231.83,17.08186405]
[1737184792277,17.08186405,231.93,231.86,17.08186405]
[1737184792859,17.08186405,231.93,231.84,17.08186405]
[1737184793164,17.08186405,231.93,231.86,17.08186405]
[1737184793369,9.1252,231.95,231.88,17.08186405]
[1737184793565,17.08186405,232.01,231.92,17.08186405]
[1737184793962,17.08186405,231.99,231.93,20.0]
[1737184794676,17.08186405,231.99,231.9,17.08186405]
[1737184794677,17.08186405,231.99,231.92,17.08186405]
[1737184795454,17.08186405,232.01,231.92,17.08186405]
[1737184795955,17.08186405,232.03,231.94,17.08186405]
[1737184796163,0.063,232.05,231.96,17.08186405]
[1737184796371,17.14486405,232.05,231.96,17.08186405]
[1737184797466,17.08186405,232.01,231.92,17.08186405]
[1737184797672,17.08186405,232.01,231.8,5.1504]
[1737184797673,17.08186405,231.97,231.88,17.08186405]
[1737184799578,17.08186405,231.99,231.9,17.08186405]
[1737184800087,17.08186405,231.94,231.85,17.08186405]
[1737184800254,26.20706405,231.98,231.91,17.08186405]
[1737184800451,9.1252,231.98,231.91,17.08186405]
[1737184800676,17.08186405,232.02,231.93,17.08186405]
[1737184801050,17.08186405,232.0,231.91,17.08186405]
[1737184801663,17.08186405,231.92,231.82,17.08186405]
[1737184801864,17.08186405,231.92,231.84,17.08186405]
[1737184802262,0.80833515,231.99,231.89,17.08186405]
[1737184802458,17.08186405,232.04,231.95,17.08186405]
[1737184802654,11.3647,232.05,231.93,17.08186405]
[1737184802655,17.08186405,232.02,231.93,17.08186405]
[1737184803471,17.08186405,232.04,231.95,17.08186405]
[1737184804182,17.08186405,232.04,231.98,20.0]
[1737184804387,11.3647,232.05,231.97,17.08186405]
[1737184805176,9.1882,232.05,231.99,17.08186405]
[1737184807282,9.1882,232.05,231.93,1.09756398]
[1737184807283,9.1882,232.05,232.01,17.08186405]
[1737184807591,8.316,232.12,232.03,17.08186405]
[1737184807788,8.316,232.12,232.07,17.08186405]
[1737184808491,17.08186405,232.17,232.09,17.08186405]
[1737184809262,8.379,232.19,231.96,17.08186405]
[1737184809263,8.379,232.19,232.13,17.08186405]
[1737184809691,8.379,232.19,232.11,17.08186405]
[1737184809863,25.46086405,232.19,232.11,17.08186405]
[1737184810062,8.379,232.19,232.13,17.08186405]
[1737184810787,0.063,232.19,232.17,17.08186405]
[1737184810966,0.063,232.19,232.15,17.08186405]
[1737184811166,0.063,232.19,232.13,17.08186405]
[1737184811670,0.063,232.19,232.0,2.2779]
[1737184811671,17.08186405,232.17,232.09,17.08186405]
[1737184811869,17.14486405,232.19,232.09,17.08186405]
[1737184812070,0.063,232.19,232.16,20.0]
[1737184812665,17.14486405,232.19,232.1,17.08186405]
[1737184813062,17.14486405,232.19,232.12,17.08186405]
[1737184813262,0.063,232.19,232.14,17.08186405]
[1737184813674,0.063,232.19,232.16,17.08186405]
[1737184814565,0.063,232.19,232.18,17.08186405]
[1737184815375,0.063,232.23,232.2,17.08186405]
[1737184815576,0.063,232.23,232.18,17.08186405]
[1737184816381,0.063,232.23,232.21,17.08186405]
[1737184816579,0.063,232.29,232.21,17.08186405]
[1737184816782,25.39786405,232.38,232.28,17.08186405]
[1737184816990,29.70116405,232.38,232.29,17.08186405]
[1737184817486,17.08186405,232.34,232.25,17.08186405]
[1737184818172,17.08186405,232.36,232.27,17.08186405]
[1737184818492,17.08186405,232.34,232.27,17.08186405]
[1737184818689,17.08186405,232.36,232.27,17.08186405]
[1737184819496,17.08186405,232.34,232.27,17.08186405]
[1737184820171,17.08186405,232.34,232.25,17.08186405]
[1737184820491,17.08186405,232.32,232.25,17.08186405]
[1737184821272,17.08186405,232.34,232.25,17.08186405]
[1737184821671,17.08186405,232.32,232.25,17.08186405]
[1737184822377,17.08186405,232.28,232.2,17.08186405]
[1737184822686,17.08186405,232.21,232.13,17.08186405]
[1737184822993,9.2891,232.23,232.13,17.08186405]
[1737184823303,17.08186405,232.29,232.21,17.08186405]
[1737184823481,26.37096405,232.31,232.23,17.08186405]
[1737184823992,19.28816405,232.35,232.27,17.08186405]
[1737184824191,17.08186405,232.31,232.23,17.08186405]
[1737184824392,17.08186405,232.35,232.25,17.08186405]
[1737184824688,17.08186405,232.33,232.23,17.08186405]
[1737184824997,17.08186405,232.29,232.21,17.08186405]
[1737184825687,9.3521,232.38,232.26,17.08186405]
[1737184825994,26.43396405,232.38,232.3,17.08186405]
[1737184826371,26.43396405,232.38,232.28,17.08186405]
[1737184826571,17.08186405,232.34,232.24,17.08186405]
[1737184826800,17.08186405,232.32,232.24,17.08186405]
[1737184827193,17.08186405,232.28,232.2,17.08186405]
[1737184827386,17.08186405,232.25,232.16,17.08186405]
[1737184827700,17.08186405,232.29,232.2,17.08186405]
[1737184827882,17.08186405,232.29,232.22,17.08186405]
[1737184828070,17.08186405,232.31,232.22,17.08186405]
[1737184828695,17.08186405,232.28,232.19,17.08186405]
[1737184828893,17.08186405,232.32,232.22,17.08186405]
[1737184829197,17.08186405,232.3,232.22,17.08186405]
[1737184829905,4.3038,232.36,232.24,17.08186405]
[1737184829906,17.08186405,232.32,232.24,17.08186405]
[1737184830205,9.3521,232.38,232.11,5.25102713]
[1737184830206,0.063,232.38,232.29,37.08186405]
[1737184830393,0.063,232.38,232.35,17.08186405]
[1737184830582,0.063,232.38,232.33,17.08186405]
[1737184830784,0.063,232.38,232.31,17.08186405]
[1737184831105,0.063,232.38,232.33,17.08186405]
[1737184831899,0.063,232.38,232.37,37.08186405]
[1737184832100,0.063,232.38,232.35,17.08186405]
[1737184832278,0.063,232.38,232.31,17.08186405]
[1737184832799,0.063,232.38,232.26,5.36]
[1737184832800,0.063,232.38,232.35,17.08186405]
[1737184833099,0.063,232.38,232.37,17.08186405]
[1737184833907,2.2999,232.38,232.24,1.7458036]
[1737184834078,2.2999,232.38,232.29,17.08186405]
[1737184834079,19.38176405,232.38,232.29,17.08186405]
[1737184834274,17.08186405,232.36,232.27,17.08186405]
[1737184834998,17.08186405,232.34,232.25,17.08186405]
[1737184836098,17.08186405,232.36,232.27,17.08186405]
[1737184836801,2.2999,232.38,232.31,17.08186405]
[1737184837304,0.063,232.38,232.31,17.08186405]
[1737184838415,0.063,232.38,232.33,17.08186405]
[1737184838906,0.063,232.38,232.35,17.08186405]
[1737184839083,0.063,232.38,232.37,17.08186405]
[1737184840295,0.063,232.56,232.4,20.0]
[1737184840497,17.14486405,232.56,232.46,17.08186405]
[1737184840705,17.14486405,232.56,232.48,17.08186405]
[1737184841105,0.063,232.56,232.48,17.08186405]
[1737184841392,0.063,232.56,232.5,17.08186405]
[1737184841809,0.063,232.56,232.53,20.0]
[1737184842415,0.063,232.56,232.55,20.0]
[1737184843613,0.063,232.56,232.52,17.08186405]
[1737184843614,0.063,232.56,232.54,17.08186405]
[1737184845692,0.063,232.56,232.54,18.77908176]
[1737184846310,26.32426405,232.7,232.57,20.0]
[1737184846505,26.32426405,232.7,232.64,20.0]
[1737184846711,17.14486405,232.72,232.64,20.0]
[1737184846920,8.7153,232.81,232.7,17.08186405]
[1737184847217,17.08186405,232.79,232.7,17.08186405]
[1737184847596,17.08186405,232.79,232.73,20.0]
[1737184848391,2.3254,232.85,232.77,20.0]
[1737184848592,17.08186405,232.87,232.78,17.08186405]
[1737184848815,17.08186405,232.87,232.81,20.0]
[1737184849294,17.08186405,232.83,232.72,17.08186405]
[1737184849599,17.08186405,232.85,232.79,20.0]
[1737184850101,17.08186405,232.87,232.79,20.0]
[1737184850304,17.08186405,232.87,232.78,17.08186405]
[1737184850496,8.7153,232.88,232.83,20.0]
[1737184851312,17.08186405,232.91,232.82,17.08186405]
[1737184851620,17.08186405,232.93,232.87,20.0]
[1737184851994,8.7153,232.96,232.89,37.08186405]
[1737184852194,17.08186405,232.98,232.89,37.08186405]
[1737184852818,17.08186405,232.94,232.85,17.08186405]
[1737184853002,17.08186405,232.92,232.83,17.08186405]
[1737184853200,17.08186405,232.94,232.85,17.08186405]
[1737184853513,27.59213659,232.94,232.88,20.0]
[1737184853826,27.59213659,232.9,232.79,27.59213659]
[1737184854003,27.59213659,232.87,232.79,27.59213659]
[1737184854390,27.59213659,232.87,232.82,20.0]
[1737184854593,27.59213659,232.89,232.82,20.0]
[1737184854818,27.59213659,232.89,232.84,20.0]
[1737184855012,27.59213659,232.95,232.86,27.59213659]
[1737184855190,27.59213659,232.95,232.89,20.0]
[1737184855393,27.59213659,232.97,232.91,20.0]
[1737184856396,27.59213659,233.01,232.95,20.0]
[1737184856707,8.7153,233.02,232.96,27.59213659]
[1737184856910,8.7153,233.02,232.99,20.0]
[1737184857115,8.9522,233.1,233.01,27.59213659]
[1737184857317,27.59213659,233.09,233.01,27.59213659]
[1737184858108,27.59213659,233.07,232.99,27.59213659]
[1737184858303,8.9522,233.1,233.01,27.59213659]
[1737184858501,27.59213659,233.04,232.97,27.59213659]
[1737184858704,27.59213659,233.04,232.95,27.59213659]
[1737184858922,27.59213659,233.02,232.93,27.59213659]
[1737184859119,27.59213659,232.98,232.89,27.59213659]
[1737184860013,27.59213659,232.93,232.85,27.59213659]
[1737184860321,8.9522,232.96,232.89,27.59213659]
[1737184860501,27.59213659,233.0,232.91,27.59213659]
[1737184860701,8.9522,233.03,232.8,40.49213659]
[1737184860702,0.80480911,233.1,232.96,20.0]
[1737184861004,27.59213659,233.03,232.93,27.59213659]
[1737184861215,27.59213659,232.99,232.91,27.59213659]
[1737184861601,27.59213659,232.99,232.94,20.0]
[1737184862514,5.09475904,233.1,232.96,20.0]
[1737184862707,27.59213659,233.05,232.98,20.0]
[1737184863105,27.59213659,233.09,233.02,20.0]
[1737184863331,27.59213659,233.1,233.03,27.59213659]
[1737184863829,27.59213659,233.1,233.04,20.0]
[1737184864210,27.59213659,233.06,232.95,27.59213659]
[1737184864532,27.59213659,232.96,232.89,1.70601318]
[1737184864716,27.59213659,232.96,232.86,27.59213659]
[1737184864913,27.59213659,232.92,232.83,27.59213659]
[1737184865709,27.59213659,232.94,232.85,27.59213659]
[1737184866006,11.1443,232.99,232.87,27.59213659]
[1737184866007,27.59213659,232.96,232.87,27.59213659]
[1737184866220,27.59213659,232.96,232.9,20.0]
[1737184866925,27.59213659,232.94,232.85,27.59213659]
[1737184867127,27.59213659,232.94,232.88,20.0]
[1737184867308,27.59213659,232.92,232.83,27.59213659]
[1737184867736,27.59213659,232.9,232.81,27.59213659]
[1737184868034,27.59213659,232.92,232.83,27.59213659]
[1737184868946,27.59213659,232.9,232.81,27.59213659]
[1737184869124,4.2923,232.98,232.79,27.59213659]
[1737184869125,27.59213659,232.88,232.79,27.59213659]
[1737184869311,27.59213659,232.86,232.76,75.66195178]
[1737184869835,27.59213659,232.84,232.76,46.32]
[1737184870518,27.59213659,232.82,232.74,29.32542167]
[1737184870727,27.59213659,232.92,232.72,0.03]
[1737184870728,27.59213659,232.76,232.72,0.03]
[1737184870905,27.59213659,232.73,232.72,0.03]
[1737184872317,10.6238,232.83,232.72,0.03]
[1737184872318,27.59213659,232.79,232.72,0.03]
[1737184872633,27.59213659,232.79,232.7,0.02006767]
[1737184873038,27.59213659,232.77,232.7,0.02006767]
[1737184874321,27.59213659,232.73,232.7,0.02006767]
[1737184874529,27.59213659,232.71,232.7,0.02006767]
[1737184874837,36.03593659,232.71,232.63,46.32]
[1737184875041,8.4438,232.71,232.63,46.32]
[1737184875337,27.59213659,232.74,232.67,20.0]
[1737184875733,8.4438,232.84,232.74,20.0]
[1737184875922,27.59213659,232.82,232.74,20.0]
[1737184876239,27.59213659,232.82,232.76,20.0]
[1737184876440,36.03593659,232.84,232.78,20.0]